fUST/lending_fUST_20250801
["ID","MTS","AMOUNT","RATE_DAILY","PERIOD"]
[376567712,1754027432939,-460.0,0.00019452,2]
[376567713,1754027432948,-500.0,0.00019452,2]
[376567714,1754027432957,-1282.79825921,0.00019472,2]
[376567715,1754027432966,-193.42240796,0.00019508,2]
[376567716,1754027432975,-200.0,0.00019561,15]
[376567717,1754027432984,-200.0,0.00019561,15]
[376567718,1754027432993,-200.0,0.00019561,15]
[376567719,1754027433003,-200.0,0.00019561,15]
[376567720,1754027433012,-179.76630381,0.00019697,2]
[376567721,1754027433022,-3559.33351628,0.00019707,2]
[376567722,1754027433032,-1000.0,0.00019721,2]
[376567723,1754027433042,-1000.0,0.00019721,2]
[376567724,1754027433052,-500.0,0.00019721,2]
[376567725,1754027433062,-460.0,0.00019726,2]
[376567726,1754027433072,-477.35374876,0.00019726,2]
[376567727,1754027433081,-460.0,0.00019726,2]
[376567728,1754027433090,-460.0,0.00019726,2]
[376567729,1754027433104,-227.01979477,0.00019726,2]
[376567730,1754027433113,-465.03404526,0.00019726,2]
[376567731,1754027433123,-460.0,0.00019726,2]
[376567732,1754027433133,-460.0,0.00019726,2]
[376567733,1754027433143,-460.0,0.00019726,2]
[376567734,1754027433153,-460.0,0.00019726,2]
[376567735,1754027433165,-460.0,0.00019726,2]
[376567737,1754027433174,-883.16,0.00019726,2]
[376567739,1754027433185,-460.0,0.00019726,2]
[376567741,1754027433196,-460.0,0.00019726,2]
[376567743,1754027433205,-460.0,0.00019726,2]
[376567745,1754027433216,-460.0,0.00019726,2]
[376567746,1754027433229,-460.0,0.00019726,2]
[376567747,1754027433239,-460.0,0.00019726,2]
[376567749,1754027433248,-461.92,0.00019726,2]
[376567750,1754027433259,-460.0,0.00019726,2]
[376567752,1754027433270,-460.0,0.00019726,2]
[376567754,1754027433280,-597.90409529,0.00019726,2]
[376567756,1754027433290,-460.0,0.00019726,2]
[376567758,1754027433301,-460.0,0.00019726,2]
[376567759,1754027433311,-460.0,0.00019726,2]
[376567761,1754027433321,-460.0,0.00019726,2]
[376567763,1754027433331,-524.85,0.00019726,2]
[376567765,1754027433341,-460.0,0.00019726,2]
[376567767,1754027433351,-460.0,0.00019726,2]
[376567769,1754027433361,-460.0,0.00019726,2]
[376567770,1754027433371,-460.0,0.00019726,2]
[376567771,1754027433380,-463.38529226,0.00019726,2]
[376567772,1754027433390,-1405.28,0.00019726,2]
[376567773,1754027433400,-460.0,0.00019726,2]
[376567774,1754027433412,-460.0,0.00019726,2]
[376567775,1754027433421,-460.0,0.00019726,2]
[376567776,1754027433431,-468.46015071,0.00019726,2]
[376567777,1754027433441,-460.0,0.00019726,2]
[376567778,1754027433451,-460.0,0.00019726,2]
[376567779,1754027433461,-460.0,0.00019726,2]
[376567780,1754027433471,-235.68621754,0.00019726,2]
[376567781,1754027433481,-466.2553572,0.00019726,2]
[376567782,1754027433491,-460.0,0.00019726,2]
[376567783,1754027433501,-1037.44,0.00019726,2]
[376567784,1754027433511,-460.0,0.00019726,2]
[376567785,1754027433520,-500.0,0.00019726,2]
[376567786,1754027433530,-999.0,0.00019806,2]
[376567787,1754027433540,-460.0,0.00019807,2]
[376567788,1754027433550,-417.1805817,0.00019807,2]
[376567789,1754027433559,-463.36922938,0.00019807,2]
[376567790,1754027433569,-460.0,0.00019807,2]
[376567791,1754027433579,-460.0,0.00019807,2]
[376567792,1754027433589,-460.0,0.00019807,2]
[376567793,1754027433599,-460.0,0.00019807,2]
[376567794,1754027433609,-458.60289249,0.00019807,2]
[376567795,1754027433618,-460.0,0.00019807,2]
[376567796,1754027433628,-460.0,0.00019807,2]
[376567797,1754027433637,-460.0,0.00019807,2]
[376567798,1754027433647,-460.0,0.00019807,2]
[376567799,1754027433657,-460.0,0.00019807,2]
[376567800,1754027433669,-460.0,0.00019807,2]
[376567801,1754027433679,-460.0,0.00019807,2]
[376567802,1754027433689,-460.0,0.00019807,2]
[376567803,1754027433699,-460.0,0.00019807,2]
[376567804,1754027433709,-460.0,0.00019807,2]
[376567805,1754027433719,-460.0,0.00019807,2]
[376567806,1754027433728,-460.0,0.00019807,2]
[376567807,1754027433739,-463.52131933,0.00019807,2]
[376567808,1754027433748,-460.0,0.00019807,2]
[376567809,1754027433758,-460.0,0.00019807,2]
[376567810,1754027433768,-460.0,0.00019807,2]
[376567811,1754027433778,-460.0,0.00019807,2]
[376567812,1754027433787,-500.0,0.00019807,2]
[376567813,1754027433797,-460.0,0.00019807,2]
[376567814,1754027433806,-500.0,0.00019807,2]
[376567815,1754027433815,-500.0,0.00019807,2]
[376567816,1754027433825,-460.0,0.00019807,2]
[376567817,1754027433835,-460.0,0.00019807,2]
[376567818,1754027433844,-460.0,0.00019807,2]
[376567819,1754027433855,-460.0,0.00019807,2]
[376567820,1754027433866,-460.0,0.00019807,2]
[376567821,1754027433875,-460.0,0.00019807,2]
[376567822,1754027433885,-460.0,0.00019807,2]
[376567823,1754027433895,-460.0,0.00019807,2]
[376567824,1754027433904,-460.0,0.00019807,2]
[376567825,1754027433916,-460.81932177,0.00019807,2]
[376567826,1754027433926,-460.0,0.00019807,2]
[376567827,1754027433936,-460.0,0.00019807,2]
[376567828,1754027433945,-460.0,0.00019807,2]
[376567829,1754027433955,-460.0,0.00019807,2]
[376567830,1754027433965,-841.05,0.00019807,2]
[376567831,1754027433975,-460.0,0.00019807,2]
[376567832,1754027433984,-460.0,0.00019807,2]
[376567833,1754027433993,-460.0,0.00019807,2]
[376567834,1754027434005,-460.0,0.00019807,2]
[376567835,1754027434014,-460.0,0.00019807,2]
[376567836,1754027434024,-460.0,0.00019807,2]
[376567837,1754027434034,-465.2413029,0.00019807,2]
[376567838,1754027434044,-460.0,0.00019807,2]
[376567839,1754027434053,-460.0,0.00019807,2]
[376567840,1754027434062,-460.0,0.00019807,2]
[376567841,1754027434072,-460.0,0.00019807,2]
[376567842,1754027434081,-460.0,0.00019807,2]
[376567843,1754027434091,-460.0,0.00019807,2]
[376567844,1754027434101,-460.0,0.00019807,2]
[376567845,1754027434111,-460.0,0.00019807,2]
[376567846,1754027434121,-460.0,0.00019807,2]
[376567847,1754027434130,-460.0,0.00019807,2]
[376567848,1754027434140,-460.89522095,0.00019807,2]
[376567849,1754027434150,-460.0,0.00019807,2]
[376567850,1754027434160,-460.0,0.00019807,2]
[376567851,1754027434170,-460.0,0.00019807,2]
[376567852,1754027434180,-460.0,0.00019807,2]
[376567853,1754027434189,-460.0,0.00019807,2]
[376567854,1754027434198,-460.0,0.00019807,2]
[376567855,1754027434207,-460.0,0.00019807,2]
[376567856,1754027434217,-460.0,0.00019807,2]
[376567857,1754027434231,-460.0,0.00019807,2]
[376567858,1754027434240,-460.0,0.00019807,2]
[376567859,1754027434250,-460.0,0.00019807,2]
[376567860,1754027434260,-460.0,0.00019807,2]
[376567861,1754027434271,-460.0,0.00019807,2]
[376567862,1754027434280,-460.0,0.00019807,2]
[376567863,1754027434290,-460.0,0.00019807,2]
[376567864,1754027434300,-460.0,0.00019807,2]
[376567865,1754027434310,-501.272465,0.00019807,2]
[376567866,1754027434319,-460.0,0.00019807,2]
[376567867,1754027434328,-460.0,0.00019807,2]
[376567868,1754027434338,-518.65845537,0.00019807,2]
[376567869,1754027434348,-460.0,0.00019807,2]
[376567870,1754027434358,-775.23,0.00019807,2]
[376567871,1754027434367,-460.0,0.00019807,2]
[376567872,1754027434376,-460.0,0.00019807,2]
[376567873,1754027434391,-460.0,0.00019807,2]
[376567874,1754027434404,-551.4174858,0.00019807,2]
[376567875,1754027434414,-460.0,0.00019807,2]
[376567876,1754027434423,-460.0,0.00019807,2]
[376567877,1754027434433,-460.0,0.00019807,2]
[376567878,1754027434449,-461.49228217,0.00019807,2]
[376567879,1754027434464,-463.54966871,0.00019807,2]
[376567880,1754027434474,-460.0,0.00019807,2]
[376567881,1754027434483,-549.67,0.00019807,2]
[376567882,1754027434493,-460.0,0.00019807,2]
[376567883,1754027434511,-460.0,0.00019807,2]
[376567884,1754027434523,-460.0,0.00019807,2]
[376567885,1754027434533,-460.0,0.00019807,2]
[376567886,1754027434658,-460.0,0.00019807,2]
[376567887,1754027434668,-460.0,0.00019807,2]
[376567888,1754027434677,-462.25459717,0.00019807,2]
[376567889,1754027434687,-460.0,0.00019807,2]
[376567890,1754027434696,-460.0,0.00019807,2]
[376567891,1754027434705,-460.0,0.00019807,2]
[376567892,1754027434714,-460.0,0.00019807,2]
[376567893,1754027434724,-465.60476705,0.00019807,2]
[376567894,1754027434733,-590.13098003,0.00019807,2]
[376567895,1754027434743,-460.0,0.00019807,2]
[376567896,1754027434753,-460.0,0.00019807,2]
[376567897,1754027434762,-460.0,0.00019807,2]
[376567898,1754027434771,-460.0,0.00019807,2]
[376567899,1754027434781,-460.0,0.00019807,2]
[376567900,1754027434791,-460.0,0.00019807,2]
[376567901,1754027434800,-461.5295072,0.00019807,2]
[376567902,1754027434810,-460.0,0.00019807,2]
[376567903,1754027434820,-460.0,0.00019807,2]
[376567904,1754027434829,-460.0,0.00019807,2]
[376567905,1754027434839,-460.0,0.00019807,2]
[376567906,1754027434848,-460.0,0.00019807,2]
[376567907,1754027434857,-460.0,0.00019807,2]
[376567908,1754027434867,-460.0,0.00019807,2]
[376567909,1754027434877,-460.0,0.00019807,2]
[376567910,1754027434886,-698.76,0.00019807,2]
[376567911,1754027434897,-460.0,0.00019807,2]
[376567912,1754027434906,-464.29494719,0.00019807,2]
[376567913,1754027434918,-460.0,0.00019808,2]
[376567914,1754027434927,-597.36493324,0.00019808,2]
[376567915,1754027434937,-460.0,0.00019808,2]
[376567916,1754027434945,-460.0,0.00019808,2]
[376567917,1754027434955,-460.0,0.00019808,2]
[376567918,1754027434964,-460.0,0.00019808,2]
[376567919,1754027434974,-460.77361098,0.00019808,2]
[376567920,1754027434983,-460.82791587,0.00019808,2]
[376567921,1754027434992,-460.0,0.00019808,2]
[376567922,1754027435001,-460.0,0.00019808,2]
[376567923,1754027435011,-460.0,0.00019808,2]
[376567924,1754027435020,-460.0,0.00019808,2]
[376567925,1754027435030,-460.0,0.00019808,2]
[376567926,1754027435040,-460.0,0.00019808,2]
[376567927,1754027435050,-460.0,0.00019808,2]
[376567928,1754027435059,-285.16982034,0.00019808,2]
[376567929,1754027435069,-460.0,0.00019808,2]
[376567930,1754027435079,-460.0,0.00019808,2]
[376567931,1754027435089,-460.0,0.00019808,2]
[376567932,1754027435099,-461.63091925,0.00019808,2]
[376567933,1754027435109,-460.0,0.00019808,2]
[376567934,1754027435119,-460.0,0.00019808,2]
[376567935,1754027435128,-460.0,0.00019808,2]
[376567936,1754027435138,-463.14970518,0.00019808,2]
[376567937,1754027435148,-460.0,0.00019808,2]
[376567938,1754027435157,-460.0,0.00019808,2]
[376567939,1754027435169,-460.0,0.00019808,2]
[376567940,1754027435178,-500.0,0.00019873,2]
[376567941,1754027435188,-500.0,0.00019873,2]
[376567942,1754027435197,-10225.20845719,0.00019892,2]
[376567943,1754027435207,-462.6545367,0.00019921,2]
[376567944,1754027435216,-2554.1526445,0.00019952,2]
[376567945,1754027435229,-500.0,0.00019973,2]
[376567946,1754027435239,-500.0,0.00019973,2]
[376567947,1754027435248,-500.0,0.00019973,2]
[376567948,1754027435258,-500.0,0.00019973,2]
[376567949,1754027435267,-150.0,0.00019973,2]
[376567950,1754027435276,-514.00416747,0.00019973,2]
[376567951,1754027435286,-500.0,0.00019973,2]
[376567952,1754027435295,-500.0,0.00019973,2]
[376567953,1754027435305,-457.12436964,0.00019973,2]
[376567954,1754027435315,-500.0,0.00019973,2]
[376567955,1754027435325,-504.4526333,0.00019973,2]
[376567956,1754027435334,-500.0,0.00019973,2]
[376567957,1754027435343,-501.04396844,0.00019973,2]
[376567958,1754027435353,-500.0,0.00019973,2]
[376567959,1754027435362,-572.1261286,0.00019973,2]
[376567960,1754027435372,-500.0,0.00019973,2]
[376567961,1754027435382,-500.0,0.00019973,2]
[376567962,1754027435391,-500.0,0.00019973,2]
[376567963,1754027435400,-500.0,0.00019973,2]
[376567964,1754027435409,-500.0,0.00019973,2]
[376567965,1754027435419,-308.48748094,0.00019973,2]
[376567966,1754027435428,-500.0,0.00019973,2]
[376567967,1754027435438,-500.0,0.00019973,2]
[376567968,1754027435447,-500.0,0.00019973,2]
[376567969,1754027435456,-500.96174638,0.00019973,2]
[376567970,1754027435465,-393.52249842,0.00019973,2]
[376567971,1754027435474,-500.0,0.00019973,2]
[376567972,1754027435483,-500.0,0.00019973,2]
[376567973,1754027435492,-500.0,0.00019973,2]
[376567974,1754027435501,-500.0,0.00019973,2]
[376567975,1754027435510,-500.0,0.00019973,2]
[376567976,1754027435519,-523.17119575,0.00019973,2]
[376567977,1754027435529,-510.72569015,0.00019973,2]
[376567978,1754027435538,-500.0,0.00019973,2]
[376567979,1754027435547,-500.0,0.00019973,2]
[376567980,1754027435556,-500.0,0.00019973,2]
[376567981,1754027435565,-500.0,0.00019973,2]
[376567982,1754027435575,-500.0,0.00019973,2]
[376567983,1754027435584,-500.0,0.00019973,2]
[376567984,1754027435594,-624.73570136,0.00019973,2]
[376567985,1754027435603,-500.0,0.00019973,2]
[376567986,1754027435612,-100000.0,0.0001999,2]
[376567987,1754027435621,-3042.1131575,0.00019992,2]
[376567988,1754027435630,-157.79,0.00019998,2]
[376567989,1754027435639,-500.0,0.00019998,2]
[376567990,1754027435648,-500.0,0.00019998,2]
[376567991,1754027435658,-500.0,0.00019998,2]
[376567992,1754027435668,-500.0,0.00019998,2]
[376567993,1754027435677,-500.0,0.00019998,2]
[376567994,1754027435686,-500.0,0.00019998,2]
[376567995,1754027435695,-500.0,0.00019998,2]
[376567996,1754027435704,-460.0,0.00019999,2]
[376567997,1754027435713,-460.0,0.00019999,2]
[376567998,1754027435722,-460.0,0.00019999,2]
[376567999,1754027435731,-284.61927165,0.00019999,2]
[376568000,1754027435740,-460.0,0.00019999,2]
[376568001,1754027435749,-460.0,0.00019999,2]
[376568002,1754027435758,-461.35873482,0.00019999,2]
[376568003,1754027435766,-463.74981173,0.00019999,2]
[376568004,1754027435775,-461.80613242,0.00019999,2]
[376568005,1754027435784,-460.0,0.00019999,2]
[376568006,1754027435793,-460.0,0.00019999,2]
[376568007,1754027435801,-460.79970362,0.00019999,2]
[376568008,1754027435810,-460.0,0.00019999,2]
[376568009,1754027435828,-460.0,0.00019999,2]
[376568010,1754027435838,-460.20822414,0.00019999,2]
[376568011,1754027435848,-462.64590275,0.00019999,2]
[376568012,1754027435857,-461.24508429,0.00019999,2]
[376568013,1754027435866,-460.0,0.00019999,2]
[376568014,1754027435875,-460.0,0.00019999,2]
[376568015,1754027435885,-460.0,0.00019999,2]
[376568016,1754027435894,-460.0,0.00019999,2]
[376568017,1754027435904,-472.20251986,0.00019999,2]
[376568018,1754027435914,-460.0,0.00019999,2]
[376568019,1754027435924,-460.0,0.00019999,2]
[376568020,1754027435933,-460.0,0.00019999,2]
[376568021,1754027435943,-460.0,0.00019999,2]
[376568022,1754027435953,-464.06084467,0.00019999,2]
[376568023,1754027435962,-462.1269988,0.00019999,2]
[376568024,1754027435972,-285.97758202,0.00019999,2]
[376568025,1754027435981,-497.51963768,0.00019999,2]
[376568026,1754027435991,-464.58210424,0.00019999,2]
[376568027,1754027436001,-460.0,0.00019999,2]
[376568028,1754027436010,-461.6226126,0.00019999,2]
[376568029,1754027436019,-460.0,0.00019999,2]
[376568030,1754027436029,-460.0,0.00019999,2]
[376568031,1754027436039,-464.66782119,0.00019999,2]
[376568032,1754027436049,-461.54502376,0.00019999,2]
[376568033,1754027436058,-462.57907642,0.00019999,2]
[376568034,1754027436068,-460.0,0.00019999,2]
[376568035,1754027436077,-532.12220029,0.00019999,2]
[376568036,1754027436087,-46.2659635,0.00019999,2]
[376568037,1754027436217,-413.7340365,0.00019999,2]
[376568038,1754027436233,-79.78954899,0.00019999,2]
[376568039,1754027436244,-380.21045101,0.00019999,2]
[376568040,1754027436254,-466.46181223,0.00019999,2]
[376568041,1754027436263,-117.34813034,0.00019999,2]
[376568042,1754027436276,-342.65186966,0.00019999,2]
[376568043,1754027436285,-460.0,0.00019999,2]
[376568044,1754027436295,-460.0,0.00019999,2]
[376568045,1754027436308,-461.37379332,0.00019999,2]
[376568046,1754027436317,-464.41133577,0.00019999,2]
[376568047,1754027436327,-463.36638756,0.00019999,2]
[376568048,1754027436336,-465.0843164,0.00019999,2]
[376568049,1754027436345,-460.0,0.00019999,2]
[376568050,1754027436355,-18.56704201,0.00019999,2]
[376568051,1754027436376,-500.0,0.00019998,2]
[376568052,1754027436385,-103.03914031,0.00019999,2]
[376568053,1754027436399,-338.39381768,0.00019999,2]
[376568054,1754027436408,-255.39992439,0.00019999,2]
[376568061,1754027438124,-460.0,0.00019178,2]
[376568063,1754027438135,-463.13657044,0.00019178,2]
[376568065,1754027438145,-465.7211225,0.00019178,2]
[376568066,1754027438155,-460.0,0.00019452,2]
[376568068,1754027438169,-197.06806408,0.00019726,2]
[376568070,1754027438179,-500.0,0.00019998,2]
[376568072,1754027438189,-500.0,0.00019998,2]
[376568074,1754027438199,-500.0,0.00019998,2]
[376568076,1754027438209,-500.0,0.00019998,2]
[376568078,1754027438219,-500.0,0.00019998,2]
[376568080,1754027438232,-204.60007561,0.00019999,2]
[376568082,1754027438241,-460.0,0.00019999,2]
[376568084,1754027438251,-460.67618889,0.00019999,2]
[376568086,1754027438261,-460.0,0.00019999,2]
[376568088,1754027438272,-460.0,0.00019999,2]
[376568090,1754027438282,-460.0,0.00019999,2]
[376568092,1754027438292,-460.0,0.00019999,2]
[376568094,1754027438303,-460.0,0.00019999,2]
[376568096,1754027438312,-460.0,0.00019999,2]
[376568097,1754027438321,-460.0,0.00019999,2]
[376568099,1754027438330,-460.0,0.00019999,2]
[376568101,1754027438340,-460.0,0.00019999,2]
[376568103,1754027438349,-460.0,0.00019999,2]
[376568105,1754027438359,-463.07978295,0.00019999,2]
[376568107,1754027438368,-460.0,0.00019999,2]
[376568108,1754027438377,-462.87975586,0.00019999,2]
[376568110,1754027438387,-460.0,0.00019999,2]
[376568112,1754027438398,-460.0,0.00019999,2]
[376568114,1754027438407,-463.94195834,0.00019999,2]
[376568116,1754027438419,-465.04992067,0.00019999,2]
[376568118,1754027438430,-460.0,0.00019999,2]
[376568120,1754027438440,-460.0,0.00019999,2]
[376568122,1754027438450,-521.05512666,0.00019999,2]
[376568124,1754027438460,-460.0,0.00019999,2]
[376568126,1754027438470,-460.0,0.00019999,2]
[376568128,1754027438480,-460.0,0.00019999,2]
[376568130,1754027438489,-460.0,0.00019999,2]
[376568132,1754027438499,-460.0,0.00019999,2]
[376568134,1754027438509,-460.0,0.00019999,2]
[376568136,1754027438519,-462.07453533,0.00019999,2]
[376568138,1754027438528,-460.0,0.00019999,2]
[376568140,1754027438537,-460.0,0.00019999,2]
[376568142,1754027438546,-460.0,0.00019999,2]
[376568144,1754027438555,-460.0,0.00019999,2]
[376568146,1754027438565,-460.0,0.00019999,2]
[376568148,1754027438574,-460.0,0.00019999,2]
[376568150,1754027438584,-461.5433167,0.00019999,2]
[376568152,1754027438593,-460.0,0.00019999,2]
[376568154,1754027438603,-460.0,0.00019999,2]
[376568169,1754027438612,-460.0,0.00019999,2]
[376568171,1754027438747,-460.0,0.00019999,2]
[376568173,1754027438757,-460.0,0.00019999,2]
[376568175,1754027438766,-205.09136491,0.00019999,2]
[376568177,1754027438776,-461.73469689,0.00019999,2]
[376568179,1754027438785,-472.83720018,0.00019999,2]
[376568181,1754027438794,-460.0,0.00019999,2]
[376568182,1754027438804,-460.0,0.00019999,2]
[376568184,1754027438814,-466.51689631,0.00019999,2]
[376568187,1754027438824,-460.0,0.00019999,2]
[376568188,1754027438834,-460.0,0.00019999,2]
[376568190,1754027438843,-460.0,0.00019999,2]
[376568193,1754027438855,-460.0,0.00019999,2]
[376568194,1754027438864,-460.0,0.00019999,2]
[376568196,1754027438874,-461.96362209,0.00019999,2]
[376568198,1754027438883,-460.0,0.00019999,2]
[376568200,1754027438892,-460.0,0.00019999,2]
[376568202,1754027438901,-512.0086404,0.00019999,2]
[376568204,1754027438911,-465.68864382,0.00019999,2]
[376568206,1754027438923,-460.0,0.00019999,2]
[376568207,1754027438932,-461.55749883,0.00019999,2]
[376568209,1754027438942,-597.96065398,0.00019999,2]
[376568211,1754027438951,-460.0,0.00019999,2]
[376568213,1754027438959,-460.0,0.00019999,2]
[376568215,1754027438969,-460.0,0.00019999,2]
[376568217,1754027438978,-460.0,0.00019999,2]
[376568219,1754027438988,-460.0,0.00019999,2]
[376568221,1754027438997,-460.0,0.00019999,2]
[376568223,1754027439006,-460.0,0.00019999,2]
[376568225,1754027439016,-461.88860305,0.00019999,2]
[376568227,1754027439025,-460.0,0.00019999,2]
[376568229,1754027439034,-460.0,0.00019999,2]
[376568231,1754027439044,-460.0,0.00019999,2]
[376568233,1754027439053,-461.68956108,0.00019999,2]
[376568235,1754027439063,-460.0,0.00019999,2]
[376568237,1754027439072,-460.0,0.00019999,2]
[376568238,1754027439083,-460.0,0.00019999,2]
[376568241,1754027439092,-460.0,0.00019999,2]
[376568242,1754027439102,-460.0,0.00019999,2]
[376568244,1754027439112,-460.0,0.00019999,2]
[376568246,1754027439122,-464.99168555,0.00019999,2]
[376568248,1754027439131,-460.0,0.00019999,2]
[376568250,1754027439141,-462.19632737,0.00019999,2]
[376568252,1754027439151,-460.0,0.00019999,2]
[376568254,1754027439160,-460.0,0.00019999,2]
[376568256,1754027439172,-460.0,0.00019999,2]
[376568258,1754027439182,-503.48789098,0.00019999,2]
[376568260,1754027439192,-460.0,0.00019999,2]
[376568262,1754027439202,-460.0,0.00019999,2]
[376568264,1754027439212,-460.0,0.00019999,2]
[376568266,1754027439223,-460.0,0.00019999,2]
[376568268,1754027439233,-460.0,0.00019999,2]
[376568270,1754027439243,-461.49933486,0.00019999,2]
[376568272,1754027439252,-460.0,0.00019999,2]
[376568274,1754027439263,-460.0,0.00019999,2]
[376568276,1754027439273,-460.0,0.00019999,2]
[376568278,1754027439283,-463.68037882,0.00019999,2]
[376568280,1754027439292,-460.0,0.00019999,2]
[376568282,1754027439303,-460.0,0.00019999,2]
[376568284,1754027439313,-509.57850863,0.00019999,2]
[376568286,1754027439324,-467.76844764,0.00019999,2]
[376568288,1754027439334,-460.0,0.00019999,2]
[376568290,1754027439343,-460.0,0.00019999,2]
[376568292,1754027439353,-460.0,0.00019999,2]
[376568294,1754027439363,-460.0,0.00019999,2]
[376568296,1754027439373,-460.0,0.00019999,2]
[376568298,1754027439383,-460.0,0.00019999,2]
[376568300,1754027439393,-460.0,0.00019999,2]
[376568301,1754027439402,-460.0,0.00019999,2]
[376568303,1754027439412,-500.0,0.00019999,2]
[376568305,1754027439423,-460.0,0.00019999,2]
[376568307,1754027439432,-460.0,0.00019999,2]
[376568309,1754027439442,-460.0,0.00019999,2]
[376568311,1754027439452,-460.0,0.00019999,2]
[376568313,1754027439461,-460.0,0.00019999,2]
[376568315,1754027439471,-461.23726727,0.00019999,2]
[376568317,1754027439480,-460.0,0.00019999,2]
[376568319,1754027439489,-460.0,0.00019999,2]
[376568321,1754027439499,-460.84634206,0.00019999,2]
[376568323,1754027439508,-603.87961973,0.00019999,2]
[376568325,1754027439519,-460.0,0.00019999,2]
[376568327,1754027439528,-460.0,0.00019999,2]
[376568329,1754027439537,-460.0,0.00019999,2]
[376568331,1754027439546,-288.81842666,0.00019999,2]
[376568333,1754027439555,-440.91170205,0.00019999,2]
[376568335,1754027439564,-463.37447862,0.00019999,2]
[376568336,1754027439573,-460.0,0.00019999,2]
[376568338,1754027439583,-460.0,0.00019999,2]
[376568340,1754027439592,-460.0,0.00019999,2]
[376568342,1754027439601,-462.14973403,0.00019999,2]
[376568344,1754027439610,-460.0,0.00019999,2]
[376568346,1754027439619,-460.0,0.00019999,2]
[376568348,1754027439629,-460.0,0.00019999,2]
[376568351,1754027439638,-447.5436196,0.00019999,2]
[376568353,1754027439647,-455.0,0.00019999,2]
[376568356,1754027439657,-460.0,0.00019999,2]
[376568359,1754027439669,-460.0,0.00019999,2]
[376568362,1754027439679,-460.0,0.00019999,2]
[376568364,1754027439688,-460.0,0.00019999,2]
[376568366,1754027439697,-460.0,0.00019999,2]
[376568368,1754027439707,-184.71429757,0.00019999,2]
[376568370,1754027439716,-460.0,0.00019999,2]
[376568372,1754027439726,-219.79892354,0.00019999,2]
[376568374,1754027439735,-460.0,0.00019999,2]
[376568376,1754027439745,-460.0,0.00019999,2]
[376568378,1754027439754,-460.0,0.00019999,2]
[376568380,1754027439763,-460.0,0.00019999,2]
[376568382,1754027439773,-460.0,0.00019999,2]
[376568384,1754027439784,-460.0,0.00019999,2]
[376568386,1754027439794,-460.0,0.00019999,2]
[376568388,1754027439803,-460.0,0.00019999,2]
[376568390,1754027439812,-460.0,0.00019999,2]
[376568392,1754027439823,-460.0,0.00019999,2]
[376568394,1754027439832,-463.206315,0.00019999,2]
[376568396,1754027439842,-460.0,0.00019999,2]
[376568398,1754027439851,-460.0,0.00019999,2]
[376568400,1754027439860,-460.0,0.00019999,2]
[376568402,1754027439869,-460.0,0.00019999,2]
[376568404,1754027439878,-460.0,0.00019999,2]
[376568406,1754027439887,-461.15333144,0.00019999,2]
[376568408,1754027439896,-460.0,0.00019999,2]
[376568410,1754027439906,-467.31306159,0.00019999,2]
[376568412,1754027439915,-460.0,0.00019999,2]